[Event "DVM U14 2021"]
[Site "Willingen"]
[Date "2022.08.15"]
[Round "5"]
[White "Martin Fernandez, Rafael"]
[Black "Klein, Maxim"]
[Result "1-0"]
[ECO "B11"]
[WhiteElo "1645"]
[BlackElo "1323"]
[Annotator "NA RC"]
[PlyCount "27"]
[EventDate "2022.08.12"]
[EventType "team-tourn"]
[EventRounds "7"]
[EventCountry "GER"]
[SourceTitle "playchess.com"]
[Source "ChessBase"]
[SourceQuality "1"]
[TimeControl "40/5400+30:1800+30"]

1. e4 {[%emt 0:00:06]} c6 {[%emt 0:00:00]} 2. Nf3 {[%emt 0:00:06]} d5 {[%emt 0:00:03]} 3. Nc3 {[%emt 0:00:14]} dxe4 {[%emt 0:00:19]} 4. Nxe4 {[%emt 0:00:07]} Nf6 {[%emt 0:00:53]} 5. Qe2 {[%emt 0:01:59]} Nxe4 {[%emt 0:00:34]} 6. Qxe4 {[%emt 0:00:44]} Nd7 {[%emt 0:00:35]} 7. Bc4 {[%emt 0:00:30]} Nf6 {[%emt 0:00:37]} 8. Ne5 {[%emt 0:00:53]} e6 {[%emt 0:00:31]} 9. Qe2 {[%emt 0:01:05]} Bd6 {[%emt 0:01:31]} 10. d4 {[%emt 0:02:18]} h6 {[%emt 0:04:30]} 11. h4 {[%emt 0:02:33]} Nd7 {[%emt 0:03:26]} 12. Nxf7 {[%emt 0:16:00]} Qa5+ {[%emt 0:00:08]} 13. Bd2 {[%emt 0:06:17]} Qxd2+ {[%emt 0:01:43]} 14. Kxd2 {[%emt 0:00:35]} 1-0

[Event "DVM U14 2021"]
[Site "Willingen"]
[Date "2022.08.15"]
[Round "5"]
[White "Bezsonna, Polina"]
[Black "Hoffmann, Kay"]
[Result "0-1"]
[ECO "B01"]
[WhiteElo "1631"]
[BlackElo "1653"]
[Annotator "NA RC"]
[PlyCount "88"]
[EventDate "2022.08.12"]
[EventType "team-tourn"]
[EventRounds "7"]
[EventCountry "GER"]
[SourceTitle "playchess.com"]
[Source "ChessBase"]
[SourceQuality "1"]
[TimeControl "40/5400+30:1800+30"]

1. e4 {[%emt 0:00:03]} d5 {[%emt 0:00:06]} 2. exd5 {[%emt 0:00:04]} Nf6 {[%emt 0:00:04]} 3. Nf3 {[%emt 0:00:43]} Nxd5 {[%emt 0:00:33]} 4. d4 {[%emt 0:00:34]} Bf5 {[%emt 0:00:19]} 5. a3 {[%emt 0:01:57]} e6 {[%emt 0:01:22]} 6. Bd3 {[%emt 0:01:13]} Bxd3 {[%emt 0:05:45]} 7. Qxd3 {[%emt 0:00:09]} Nd7 {[%emt 0:01:16]} 8. O-O {[%emt 0:08:32]} c5 {[%emt 0:05:23]} 9. dxc5 {[%emt 0:01:22]} Nxc5 {[%emt 0:04:13]} 10. Qb5+ {[%emt 0:03:16]} Qd7 {[%emt 0:00:06]} 11. Qxd7+ {[%emt 0:00:06]} Nxd7 {[%emt 0:00:05]} 12. b3 {[%emt 0:02:42]} Be7 {[%emt 0:01:27]} 13. c4 {[%emt 0:03:55]} N5b6 {[%emt 0:05:03]} 14. Bb2 {[%emt 0:00:56]} O-O {[%emt 0:01:09]} 15. Nbd2 {[%emt 0:10:03]} Rac8 {[%emt 0:03:47]} 16. Rfd1 {[%emt 0:04:47]} Rfd8 {[%emt 0:01:13]} 17. Ne4 {[%emt 0:01:41]} h6 {[%emt 0:02:17]} 18. h3 {[%emt 0:07:53]} a5 {[%emt 0:02:02]} 19. Bd4 {[%emt 0:04:37]} a4 {[%emt 0:08:00]} 20. Bxb6 {[%emt 0:01:05]} Nxb6 {[%emt 0:00:11]} 21. Rxd8+ {[%emt 0:02:30]} Rxd8 {[%emt 0:00:11]} 22. c5 {[%emt 0:01:22]} f5 {[%emt 0:00:12]} 23. cxb6 {[%emt 0:07:33]} fxe4 {[%emt 0:00:06]} 24. Ne1 {[%emt 0:00:13]} axb3 {[%emt 0:00:47]} 25. Rb1 {[%emt 0:01:51]} Rd2 {[%emt 0:02:34]} 26. Rxb3 {[%emt 0:02:04]} Bc5 {[%emt 0:00:11]} 27. a4 {[%emt 0:05:04]} Bxf2+ {[%emt 0:01:41]} 28. Kf1 {[%emt 0:00:19]} Bc5 {[%emt 0:00:38]} 29. Rb5 {[%emt 0:00:47]} Rf2+ {[%emt 0:01:31]} 30. Kg1 {[%emt 0:00:12]} Rf5+ {[%emt 0:00:06]} 31. Kh2 {[%emt 0:00:32]} Bd6+ {[%emt 0:15:08]} 32. Kg1 {[%emt 0:01:14]} Rxb5 {[%emt 0:00:26]} 33. axb5 {[%emt 0:00:08]} Bc5+ {[%emt 0:00:12]} 34. Kf1 {[%emt 0:00:09]} Bxb6 {[%emt 0:00:05]} 35. Nc2 {[%emt 0:00:43]} Bc5 {[%emt 0:00:12]} 36. Na1 {[%emt 0:00:55]} Kf7 {[%emt 0:00:39]} 37. Nb3 {[%emt 0:00:28]} Bb6 {[%emt 0:01:23]} 38. Nd2 {[%emt 0:00:30]} e3 {[%emt 0:00:15]} 39. Nc4 {[%emt 0:00:11]} Bc5 {[%emt 0:00:14]} 40. Ke2 {[%emt 0:00:30]} Kf6 {[%emt 0:02:19]} 41. Nxe3 {[%emt 0:31:10]} Bxe3 {[%emt 0:30:08]} 42. Kxe3 {[%emt 0:00:04]} Ke5 {[%emt 0:00:05]} 43. b6 {[%emt 0:00:20]} g6 {[%emt 0:02:26]} 44. g3 {[%emt 0:00:06]} g5 {[%emt 0:00:10]} 0-1

[Event "DVM U14 2021"]
[Site "Willingen"]
[Date "2022.08.15"]
[Round "5"]
[White "Isbilir, Levin"]
[Black "Helmbrecht, Paul"]
[Result "0-1"]
[ECO "B19"]
[WhiteElo "1629"]
[BlackElo "1661"]
[Annotator "NA RC"]
[PlyCount "62"]
[EventDate "2022.08.12"]
[EventType "team-tourn"]
[EventRounds "7"]
[EventCountry "GER"]
[SourceTitle "playchess.com"]
[Source "ChessBase"]
[SourceQuality "1"]
[TimeControl "40/5400+30:1800+30"]

1. e4 {[%emt 0:00:05]} c6 {[%emt 0:00:00]} 2. d4 {[%emt 0:00:03]} d5 {[%emt 0:00:00]} 3. Nc3 {[%emt 0:00:04]} dxe4 {[%emt 0:00:00]} 4. Nxe4 {[%emt 0:00:04]} Bf5 {[%emt 0:00:00]} 5. Ng3 {[%emt 0:00:04]} Bg6 {[%emt 0:00:48]} 6. Nf3 {[%emt 0:00:06]} Nd7 {[%emt 0:00:41]} 7. h4 {[%emt 0:00:04]} h6 {[%emt 0:00:04]} 8. h5 {[%emt 0:00:04]} Bh7 {[%emt 0:00:09]} 9. Bd3 {[%emt 0:00:05]} Bxd3 {[%emt 0:00:05]} 10. Qxd3 {[%emt 0:00:04]} e6 {[%emt 0:01:07]} 11. Bd2 {[%emt 0:00:05]} Ngf6 {[%emt 0:01:07]} 12. O-O-O {[%emt 0:00:04]} Be7 {[%emt 0:01:01]} 13. Kb1 {[%emt 0:00:18]} O-O {[%emt 0:00:31]} 14. Ne4 {[%emt 0:00:25]} c5 {[%emt 0:14:34]} 15. dxc5 {[%emt 0:00:08]} Nxc5 {[%emt 0:00:50]} 16. Nxf6+ {[%emt 0:00:08]} Bxf6 {[%emt 0:04:25]} 17. Qb5 {[%emt 0:07:08]} Qc7 {[%emt 0:10:23]} 18. Be3 {[%emt 0:00:14]} Rac8 {[%emt 0:04:03]} 19. Bd4 {[%emt 0:13:37]} Nd7 {[%emt 0:03:10]} 20. c3 {[%emt 0:01:14]} a6 {[%emt 0:03:26]} 21. Qe2 {[%emt 0:01:46]} e5 {[%emt 0:00:24]} 22. Be3 {[%emt 0:11:00]} e4 {[%emt 0:01:58]} 23. Nd4 {[%emt 0:00:17]} Nc5 {[%emt 0:02:05]} 24. Qg4 {[%emt 0:07:37]} Kh8 {[%emt 0:06:43]} 25. Nf5 {[%emt 0:04:23]} Nd3 {[%emt 0:15:44]} 26. Nd4 {[%emt 0:04:01]} Nxb2 {[%emt 0:01:06]} 27. Kxb2 {[%emt 0:00:07]} Qxc3+ {[%emt 0:00:10]} 28. Kb1 {[%emt 0:00:13]} Rc4 {[%emt 0:02:52]} 29. Rd2 {[%emt 0:01:50]} Rb4+ {[%emt 0:00:08]} 30. Nb3 {[%emt 0:00:10]} Qa1+ {[%emt 0:00:10]} 31. Kc2 {[%emt 0:00:42]} Rc4# {[%emt 0:00:30]} 0-1

[Event "DVM U14 2021"]
[Site "Willingen"]
[Date "2022.08.15"]
[Round "5"]
[White "Pichl, Christoph"]
[Black "Menne, Lukas"]
[Result "1-0"]
[ECO "D60"]
[WhiteElo "1617"]
[BlackElo "1190"]
[Annotator "NA RC"]
[PlyCount "111"]
[EventDate "2022.08.12"]
[EventType "team-tourn"]
[EventRounds "7"]
[EventCountry "GER"]
[SourceTitle "playchess.com"]
[Source "ChessBase"]
[SourceQuality "1"]
[TimeControl "40/5400+30:1800+30"]

1. d4 {[%emt 0:00:02]} d5 {[%emt 0:00:01]} 2. c4 {[%emt 0:00:06]} e6 {[%emt 0:00:09]} 3. Nc3 {[%emt 0:00:05]} Nf6 {[%emt 0:00:15]} 4. Bg5 {[%emt 0:00:26]} Be7 {[%emt 0:00:17]} 5. e3 {[%emt 0:00:34]} c6 {[%emt 0:00:15]} 6. Nf3 {[%emt 0:00:16]} O-O {[%emt 0:00:44]} 7. Bd3 {[%emt 0:00:11]} Nbd7 {[%emt 0:01:37]} 8. O-O {[%emt 0:01:40]} c5 {[%emt 0:02:05]} 9. Rc1 {[%emt 0:05:53]} b6 {[%emt 0:04:10]} 10. cxd5 {[%emt 0:02:41]} Nxd5 {[%emt 0:05:56]} 11. Bxe7 {[%emt 0:01:57]} Qxe7 {[%emt 0:01:05]} 12. Be4 {[%emt 0:06:55]} Bb7 {[%emt 0:06:59]} 13. Bxd5 {[%emt 0:02:05]} exd5 {[%emt 0:01:31]} 14. dxc5 {[%emt 0:00:40]} Nxc5 {[%emt 0:00:16]} 15. Nxd5 {[%emt 0:02:01]} Bxd5 {[%emt 0:01:50]} 16. Qxd5 {[%emt 0:00:10]} Rfd8 {[%emt 0:00:46]} 17. Qc4 {[%emt 0:04:30]} Rd7 {[%emt 0:05:47]} 18. Rfd1 {[%emt 0:01:35]} Rad8 {[%emt 0:01:48]} 19. Rxd7 {[%emt 0:01:11]} Qxd7 {[%emt 0:01:22]} 20. Nd4 {[%emt 0:01:32]} g6 {[%emt 0:03:51]} 21. h3 {[%emt 0:00:31]} Re8 {[%emt 0:05:22]} 22. b4 {[%emt 0:01:54]} Ne6 {[%emt 0:07:09]} 23. Nxe6 {[%emt 0:00:54]} Qxe6 {[%emt 0:07:16]} 24. Qxe6 {[%emt 0:01:53]} Rxe6 {[%emt 0:00:36]} 25. Rc7 {[%emt 0:00:26]} a6 {[%emt 0:01:07]} 26. Kf1 {[%emt 0:00:18]} Kg7 {[%emt 0:01:55]} 27. Ke2 {[%emt 0:02:53]} Rd6 {[%emt 0:01:41]} 28. a4 {[%emt 0:01:14]} b5 {[%emt 0:04:13]} 29. axb5 {[%emt 0:01:34]} axb5 {[%emt 0:00:10]} 30. Rb7 {[%emt 0:00:36]} Rd5 {[%emt 0:00:34]} 31. f3 {[%emt 0:00:38]} g5 {[%emt 0:01:31]} 32. e4 {[%emt 0:00:31]} Re5 {[%emt 0:00:18]} 33. Ke3 {[%emt 0:00:23]} Kg6 {[%emt 0:01:49]} 34. Rb6+ {[%emt 0:00:52]} f6 {[%emt 0:00:43]} 35. g4 {[%emt 0:03:33]} h6 {[%emt 0:03:09]} 36. Kd4 {[%emt 0:02:13]} Kf7 {[%emt 0:01:33]} 37. Rb7+ {[%emt 0:01:29]} Kg8 {[%emt 0:02:06]} 38. Rc7 {[%emt 0:00:40]} Re8 {[%emt 0:01:12]} 39. Rc5 {[%emt 0:00:25]} Rd8+ {[%emt 0:01:51]} 40. Rd5 {[%emt 0:01:13]} Rxd5+ {[%emt 0:03:55]} 41. Kxd5 {[%emt 0:30:08]} Kf7 {[%emt 0:30:09]} 42. Kc5 {[%emt 0:00:45]} Ke6 {[%emt 0:00:12]} 43. Kxb5 {[%emt 0:00:08]} Ke5 {[%emt 0:00:19]} 44. Kc4 {[%emt 0:00:07]} Kf4 {[%emt 0:00:11]} 45. b5 {[%emt 0:00:13]} Kxf3 {[%emt 0:00:10]} 46. b6 {[%emt 0:00:20]} Kg3 {[%emt 0:00:27]} 47. b7 {[%emt 0:00:05]} Kxh3 {[%emt 0:00:16]} 48. b8=Q {[%emt 0:00:09]} Kxg4 {[%emt 0:00:12]} 49. Qc8+ {[%emt 0:00:08]} Kg3 {[%emt 0:01:23]} 50. Qf5 {[%emt 0:01:55]} h5 {[%emt 0:00:12]} 51. Qxf6 {[%emt 0:01:17]} g4 {[%emt 0:00:20]} 52. Qf1 {[%emt 0:00:12]} h4 {[%emt 0:00:18]} 53. Qg1+ {[%emt 0:00:08]} Kh3 {[%emt 0:00:21]} 54. Kd3 {[%emt 0:02:01]} g3 {[%emt 0:00:07]} 55. Ke3 {[%emt 0:00:10]} g2 {[%emt 0:00:32]} 56. Kf2 {[%emt 0:00:37]} 1-0

[Event "DVM U14 2021"]
[Site "Willingen"]
[Date "2022.08.15"]
[Round "5"]
[White "Bolz, Jannis"]
[Black "Herfurt, Manuel"]
[Result "1/2-1/2"]
[ECO "A09"]
[WhiteElo "1616"]
[BlackElo "1656"]
[Annotator "NA RC"]
[PlyCount "46"]
[EventDate "2022.08.12"]
[EventType "team-tourn"]
[EventRounds "7"]
[EventCountry "GER"]
[SourceTitle "playchess.com"]
[Source "ChessBase"]
[SourceQuality "1"]
[TimeControl "40/5400+30:1800+30"]

1. Nf3 {[%emt 0:00:04]} d5 {[%emt 0:00:10]} 2. g3 {[%emt 0:00:06]} c5 {[%emt 0:00:21]} 3. Bg2 {[%emt 0:00:07]} Nc6 {[%emt 0:00:40]} 4. O-O {[%emt 0:00:33]} Nf6 {[%emt 0:01:12]} 5. d3 {[%emt 0:00:06]} e5 {[%emt 0:01:13]} 6. c4 {[%emt 0:01:32]} d4 {[%emt 0:09:42]} 7. e3 {[%emt 0:01:35]} Be7 {[%emt 0:01:17]} 8. exd4 {[%emt 0:00:17]} exd4 {[%emt 0:00:58]} 9. Bf4 {[%emt 0:05:13]} O-O {[%emt 0:05:56]} 10. Nbd2 {[%emt 0:02:26]} Bf5 {[%emt 0:05:10]} 11. Nb3 {[%emt 0:04:26]} Rc8 {[%emt 0:05:30]} 12. Re1 {[%emt 0:11:35]} b6 {[%emt 0:05:42]} 13. Qd2 {[%emt 0:04:44]} Nh5 {[%emt 0:09:49]} 14. Rad1 {[%emt 0:05:59]} Nxf4 {[%emt 0:02:49]} 15. Qxf4 {[%emt 0:00:11]} Bg6 {[%emt 0:03:14]} 16. h4 {[%emt 0:06:58]} Bd6 {[%emt 0:05:19]} 17. Qg4 {[%emt 0:03:06]} h5 {[%emt 0:02:06]} 18. Qg5 {[%emt 0:01:06]} Qxg5 {[%emt 0:01:31]} 19. Nxg5 {[%emt 0:00:11]} Ne5 {[%emt 0:01:16]} 20. Ne4 {[%emt 0:01:15]} Bb8 {[%emt 0:02:53]} 21. Nc1 {[%emt 0:11:30]} a5 {[%emt 0:06:51]} 22. Ne2 {[%emt 0:04:02]} Ng4 {[%emt 0:02:11]} 23. Ng5 {[%emt 0:09:15]} Rfe8 {[%emt 0:03:50]} 1/2-1/2

[Event "DVM U14 2021"]
[Site "Willingen"]
[Date "2022.08.15"]
[Round "5"]
[White "Mehner, Lorenz"]
[Black "Kiefhaber, Tobias"]
[Result "1/2-1/2"]
[ECO "E87"]
[WhiteElo "1602"]
[BlackElo "1581"]
[Annotator "NA RC"]
[PlyCount "74"]
[EventDate "2022.08.12"]
[EventType "team-tourn"]
[EventRounds "7"]
[EventCountry "GER"]
[SourceTitle "playchess.com"]
[Source "ChessBase"]
[SourceQuality "1"]
[TimeControl "40/5400+30:1800+30"]

1. d4 {[%emt 0:00:13]} Nf6 {[%emt 0:00:13]} 2. c4 {[%emt 0:00:12]} d6 {[%emt 0:00:10]} 3. Nc3 {[%emt 0:00:45]} g6 {[%emt 0:00:46]} 4. e4 {[%emt 0:02:33]} Bg7 {[%emt 0:00:20]} 5. f3 {[%emt 0:00:31]} O-O {[%emt 0:00:53]} 6. Be3 {[%emt 0:00:17]} e5 {[%emt 0:01:03]} 7. d5 {[%emt 0:00:16]} Nbd7 {[%emt 0:01:44]} 8. Bd3 {[%emt 0:01:10]} a5 {[%emt 0:03:51]} 9. Qd2 {[%emt 0:02:43]} Nc5 {[%emt 0:00:51]} 10. O-O-O {[%emt 0:03:33]} b6 {[%emt 0:00:47]} 11. Nge2 {[%emt 0:02:25]} Ba6 {[%emt 0:04:03]} 12. Kb1 {[%emt 0:02:33]} Nfd7 {[%emt 0:02:29]} 13. a3 {[%emt 0:05:47]} Nxd3 {[%emt 0:02:17]} 14. Qxd3 {[%emt 0:02:44]} Nc5 {[%emt 0:00:07]} 15. Bxc5 {[%emt 0:00:41]} bxc5 {[%emt 0:00:20]} 16. Na2 {[%emt 0:02:03]} Qd7 {[%emt 0:01:23]} 17. Nec3 {[%emt 0:01:46]} Rfb8 {[%emt 0:01:05]} 18. Kc2 {[%emt 0:07:05]} Rb6 {[%emt 0:03:25]} 19. Rb1 {[%emt 0:02:51]} Rab8 {[%emt 0:03:17]} 20. b3 {[%emt 0:01:11]} Bc8 {[%emt 0:06:29]} 21. g4 {[%emt 0:02:43]} Qe7 {[%emt 0:05:56]} 22. h4 {[%emt 0:07:18]} Bd7 {[%emt 0:01:48]} 23. h5 {[%emt 0:09:31]} g5 {[%emt 0:02:09]} 24. Rb2 {[%emt 0:03:36]} h6 {[%emt 0:04:06]} 25. Rhb1 {[%emt 0:03:13]} Qe8 {[%emt 0:03:08]} 26. b4 {[%emt 0:02:31]} axb4 {[%emt 0:01:15]} 27. axb4 {[%emt 0:00:28]} cxb4 {[%emt 0:00:52]} 28. Nxb4 {[%emt 0:06:13]} Ra8 {[%emt 0:04:02]} 29. Nd1 {[%emt 0:03:25]} Ra4 {[%emt 0:04:47]} 30. Na2 {[%emt 0:06:24]} Rxb2+ {[%emt 0:05:52]} 31. Rxb2 {[%emt 0:00:42]} Ra8 {[%emt 0:05:07]} 32. Nac3 {[%emt 0:01:21]} Ra3 {[%emt 0:02:03]} 33. Qe2 {[%emt 0:02:20]} Qa8 {[%emt 0:03:09]} 34. Kd3 {[%emt 0:06:04]} Qa7 {[%emt 0:03:00]} 35. Kc2 {[%emt 0:04:38]} Bf6 {[%emt 0:02:13]} 36. Nb1 {[%emt 0:11:03]} Ba4+ {[%emt 0:06:22]} 37. Kc1 {[%emt 0:00:00]} Bxd1 {[%emt 0:02:20]} 1/2-1/2

[Event "DVM U14 2021"]
[Site "Willingen"]
[Date "2022.08.15"]
[Round "5"]
[White "Sökler, Jakob"]
[Black "Leonard, Etienne Peter"]
[Result "1-0"]
[ECO "A13"]
[WhiteElo "1571"]
[BlackElo "1373"]
[Annotator "NA RC"]
[PlyCount "59"]
[EventDate "2022.08.12"]
[EventType "team-tourn"]
[EventRounds "7"]
[EventCountry "GER"]
[SourceTitle "playchess.com"]
[Source "ChessBase"]
[SourceQuality "1"]
[TimeControl "40/5400+30:1800+30"]

1. Nf3 {[%emt 0:00:04]} d5 {[%emt 0:00:09]} 2. e3 {[%emt 0:00:06]} c5 {[%emt 0:00:15]} 3. b3 {[%emt 0:00:07]} e6 {[%emt 0:00:23]} 4. Bb2 {[%emt 0:00:16]} Nf6 {[%emt 0:00:15]} 5. Be2 {[%emt 0:01:11]} Be7 {[%emt 0:00:24]} 6. O-O {[%emt 0:00:17]} O-O {[%emt 0:00:13]} 7. c4 {[%emt 0:03:22]} Nc6 {[%emt 0:02:36]} 8. d4 {[%emt 0:05:12]} cxd4 {[%emt 0:02:24]} 9. Nxd4 {[%emt 0:00:28]} Nxd4 {[%emt 0:02:01]} 10. Qxd4 {[%emt 0:00:55]} b6 {[%emt 0:03:14]} 11. cxd5 {[%emt 0:08:05]} exd5 {[%emt 0:00:20]} 12. Bf3 {[%emt 0:02:08]} Bb7 {[%emt 0:00:48]} 13. g4 {[%emt 0:10:03]} Bc5 {[%emt 0:02:03]} 14. Qc3 {[%emt 0:01:00]} d4 {[%emt 0:01:48]} 15. exd4 {[%emt 0:02:41]} Bxd4 {[%emt 0:00:55]} 16. Qxd4 {[%emt 0:00:19]} Qxd4 {[%emt 0:00:11]} 17. Bxd4 {[%emt 0:00:08]} Bxf3 {[%emt 0:00:08]} 18. h3 {[%emt 0:09:21]} Rfd8 {[%emt 0:01:17]} 19. Nd2 {[%emt 0:02:34]} Bb7 {[%emt 0:01:13]} 20. Bxf6 {[%emt 0:00:08]} gxf6 {[%emt 0:00:18]} 21. Nc4 {[%emt 0:01:10]} b5 {[%emt 0:05:50]} 22. Ne3 {[%emt 0:02:52]} Be4 {[%emt 0:00:45]} 23. Rfc1 {[%emt 0:06:29]} Rac8 {[%emt 0:01:41]} 24. Rxc8 {[%emt 0:00:39]} Rxc8 {[%emt 0:00:27]} 25. Rd1 {[%emt 0:00:12]} Bf3 {[%emt 0:00:29]} 26. Rd7 {[%emt 0:01:08]} a6 {[%emt 0:02:04]} 27. Rd6 {[%emt 0:01:34]} Rc6 {[%emt 0:00:21]} 28. Rd7 {[%emt 0:04:25]} Kg7 {[%emt 0:03:57]} 29. Nf5+ {[%emt 0:01:10]} Kg8 {[%emt 0:02:24]} 30. Rd8# {[%emt 0:00:58]} 1-0

[Event "DVM U14 2021"]
[Site "Willingen"]
[Date "2022.08.15"]
[Round "5"]
[White "Goldinov, Daniel"]
[Black "Chugunov, Ivan"]
[Result "1/2-1/2"]
[ECO "B22"]
[WhiteElo "1546"]
[BlackElo "1630"]
[Annotator "NA RC"]
[PlyCount "42"]
[EventDate "2022.08.12"]
[EventType "team-tourn"]
[EventRounds "7"]
[EventCountry "GER"]
[SourceTitle "playchess.com"]
[Source "ChessBase"]
[SourceQuality "1"]
[TimeControl "40/5400+30:1800+30"]

1. e4 {[%emt 0:00:04]} c5 {[%emt 0:00:14]} 2. c3 {[%emt 0:00:12]} Nf6 {[%emt 0:00:11]} 3. e5 {[%emt 0:00:06]} Nd5 {[%emt 0:00:05]} 4. d4 {[%emt 0:00:06]} cxd4 {[%emt 0:00:07]} 5. Nf3 {[%emt 0:00:01]} Nc6 {[%emt 0:00:32]} 6. cxd4 {[%emt 0:00:49]} d6 {[%emt 0:00:19]} 7. exd6 {[%emt 0:00:47]} Qxd6 {[%emt 0:00:15]} 8. Nc3 {[%emt 0:01:05]} Nxc3 {[%emt 0:07:58]} 9. bxc3 {[%emt 0:02:48]} Bf5 {[%emt 0:08:05]} 10. Bd3 {[%emt 0:08:01]} Bxd3 {[%emt 0:04:20]} 11. Qxd3 {[%emt 0:00:13]} g6 {[%emt 0:04:09]} 12. O-O {[%emt 0:03:42]} Bg7 {[%emt 0:01:26]} 13. Re1 {[%emt 0:04:47]} O-O {[%emt 0:02:48]} 14. Ng5 {[%emt 0:05:04]} h6 {[%emt 0:05:29]} 15. Ne4 {[%emt 0:01:31]} Qd5 {[%emt 0:01:44]} 16. Qh3 {[%emt 0:05:41]} h5 {[%emt 0:07:08]} 17. Ng5 {[%emt 0:43:11]} Bf6 {[%emt 0:03:18]} 18. Ne4 {[%emt 0:00:40]} Bg7 {[%emt 0:05:58]} 19. Ng5 {[%emt 0:01:05]} Bf6 {[%emt 0:01:09]} 20. Ne4 {[%emt 0:00:30]} Bg7 {[%emt 0:00:03]} 21. Ng5 {[%emt 0:00:02]} Bf6 {[%emt 0:00:08]} 1/2-1/2

[Event "DVM U14 2021"]
[Site "Willingen"]
[Date "2022.08.15"]
[Round "5"]
[White "Strauss, Florian"]
[Black "Wagner, Anton"]
[Result "1/2-1/2"]
[ECO "B13"]
[WhiteElo "1527"]
[BlackElo "1479"]
[Annotator "NA RC"]
[PlyCount "60"]
[EventDate "2022.08.12"]
[EventType "team-tourn"]
[EventRounds "7"]
[EventCountry "GER"]
[SourceTitle "playchess.com"]
[Source "ChessBase"]
[SourceQuality "1"]
[TimeControl "40/5400+30:1800+30"]

1. e4 {[%emt 0:00:02]} c6 {[%emt 0:00:19]} 2. d4 {[%emt 0:00:04]} d5 {[%emt 0:00:05]} 3. exd5 {[%emt 0:00:05]} cxd5 {[%emt 0:00:05]} 4. Bd3 {[%emt 0:00:04]} Nc6 {[%emt 0:00:06]} 5. c3 {[%emt 0:00:07]} Nf6 {[%emt 0:00:13]} 6. h3 {[%emt 0:00:05]} e5 {[%emt 0:09:44]} 7. dxe5 {[%emt 0:03:27]} Nxe5 {[%emt 0:00:12]} 8. Qe2 {[%emt 0:00:58]} Qe7 {[%emt 0:00:26]} 9. Bb5+ {[%emt 0:00:54]} Bd7 {[%emt 0:09:19]} 10. Bg5 {[%emt 0:02:51]} Bxb5 {[%emt 0:09:50]} 11. Qxb5+ {[%emt 0:00:45]} Qd7 {[%emt 0:00:22]} 12. Qe2 {[%emt 0:06:46]} Qe6 {[%emt 0:15:08]} 13. Bxf6 {[%emt 0:02:13]} gxf6 {[%emt 0:12:40]} 14. Qb5+ {[%emt 0:02:49]} Qc6 {[%emt 0:00:14]} 15. Na3 {[%emt 0:07:43]} Bxa3 {[%emt 0:00:42]} 16. Qxc6+ {[%emt 0:01:05]} bxc6 {[%emt 0:00:10]} 17. bxa3 {[%emt 0:00:15]} Rb8 {[%emt 0:00:08]} 18. Ne2 {[%emt 0:05:14]} Nd3+ {[%emt 0:01:59]} 19. Kf1 {[%emt 0:01:51]} O-O {[%emt 0:00:35]} 20. Nd4 {[%emt 0:02:13]} c5 {[%emt 0:02:17]} 21. Nc6 {[%emt 0:01:46]} Rb2 {[%emt 0:01:11]} 22. Ne7+ {[%emt 0:02:18]} Kh8 {[%emt 0:00:45]} 23. Nxd5 {[%emt 0:00:12]} Rxf2+ {[%emt 0:00:31]} 24. Kg1 {[%emt 0:00:33]} Re8 {[%emt 0:03:02]} 25. Rd1 {[%emt 0:01:00]} Ree2 {[%emt 0:19:19]} 26. Rxd3 {[%emt 0:00:17]} Rxg2+ {[%emt 0:00:08]} 27. Kf1 {[%emt 0:00:01]} Rgf2+ {[%emt 0:00:10]} 28. Kg1 {[%emt 0:00:04]} Rg2+ {[%emt 0:00:07]} 29. Kf1 {[%emt 0:00:01]} Rgf2+ {[%emt 0:00:27]} 30. Kg1 {[%emt 0:00:01]} Rg2+ {[%emt 0:00:39]} 1/2-1/2

[Event "DVM U14 2021"]
[Site "Willingen"]
[Date "2022.08.15"]
[Round "5"]
[White "Vecera, Fabio"]
[Black "Schaudienst, Arvid"]
[Result "1/2-1/2"]
[ECO "E65"]
[WhiteElo "1527"]
[BlackElo "1431"]
[Annotator "NA RC"]
[PlyCount "76"]
[EventDate "2022.08.12"]
[EventType "team-tourn"]
[EventRounds "7"]
[EventCountry "GER"]
[SourceTitle "playchess.com"]
[Source "ChessBase"]
[SourceQuality "1"]
[TimeControl "40/5400+30:1800+30"]

1. Nf3 {[%emt 0:00:07]} Nf6 {[%emt 0:00:00]} 2. c4 {[%emt 0:00:06]} g6 {[%emt 0:00:00]} 3. Nc3 {[%emt 0:00:07]} Bg7 {[%emt 0:00:22]} 4. g3 {[%emt 0:00:09]} O-O {[%emt 0:00:03]} 5. Bg2 {[%emt 0:00:12]} d6 {[%emt 0:02:48]} 6. d4 {[%emt 0:02:10]} c5 {[%emt 0:05:05]} 7. O-O {[%emt 0:16:23]} Nc6 {[%emt 0:12:42]} 8. dxc5 {[%emt 0:00:38]} dxc5 {[%emt 0:04:35]} 9. Qc2 {[%emt 0:01:23]} Bf5 {[%emt 0:04:55]} 10. e4 {[%emt 0:11:22]} Bd7 {[%emt 0:02:32]} 11. Rd1 {[%emt 0:11:22]} Qc7 {[%emt 0:21:23]} 12. Bf4 {[%emt 0:03:38]} e5 {[%emt 0:02:09]} 13. Bg5 {[%emt 0:13:49]} Be6 {[%emt 0:07:00]} 14. Nd5 {[%emt 0:03:54]} Bxd5 {[%emt 0:01:28]} 15. cxd5 {[%emt 0:00:42]} Nd4 {[%emt 0:01:18]} 16. Nxd4 {[%emt 0:00:27]} exd4 {[%emt 0:00:26]} 17. Rxd4 {[%emt 0:06:09]} Qe5 {[%emt 0:00:33]} 18. Bxf6 {[%emt 0:01:20]} Bxf6 {[%emt 0:00:45]} 19. Rd2 {[%emt 0:09:19]} Qd6 {[%emt 0:04:28]} 20. Rc1 {[%emt 0:01:16]} Bd4 {[%emt 0:04:04]} 21. b4 {[%emt 0:03:04]} b6 {[%emt 0:04:25]} 22. Qd3 {[%emt 0:03:24]} f5 {[%emt 0:05:03]} 23. bxc5 {[%emt 0:01:56]} bxc5 {[%emt 0:01:53]} 24. Re1 {[%emt 0:02:00]} fxe4 {[%emt 0:07:25]} 25. Bxe4 {[%emt 0:02:34]} Rae8 {[%emt 0:01:32]} 26. Ree2 {[%emt 0:01:42]} Qf6 {[%emt 0:03:07]} 27. Bg2 {[%emt 0:00:59]} Rxe2 {[%emt 0:00:01]} 28. Qxe2 {[%emt 0:02:32]} Bxf2+ {[%emt 0:01:03]} 29. Kh1 {[%emt 0:00:53]} Bd4 {[%emt 0:01:42]} 30. Qe6+ {[%emt 0:00:32]} Kg7 {[%emt 0:02:09]} 31. Re2 {[%emt 0:01:19]} Rf7 {[%emt 0:00:33]} 32. Qxf6+ {[%emt 0:00:03]} Rxf6 {[%emt 0:00:25]} 33. Re7+ {[%emt 0:00:10]} Rf7 {[%emt 0:00:20]} 34. Re6 {[%emt 0:00:55]} Rf6 {[%emt 0:00:35]} 35. Re7+ {[%emt 0:00:08]} Rf7 {[%emt 0:00:13]} 36. Re6 {[%emt 0:00:42]} Rf6 {[%emt 0:00:12]} 37. Re7+ {[%emt 0:00:39]} Rf7 {[%emt 0:00:07]} 38. Re6 {[%emt 0:00:53]} Rf6 {[%emt 0:00:40]} 1/2-1/2